fUSD/lending_fUSD_20251223
["ID","MTS","AMOUNT","RATE_DAILY","PERIOD"]
[399598165,1766526668894,-190.79,0.00042767,60]
[399598166,1766526668906,-247.278707,0.00042767,120]
[399598167,1766526668917,-151.0,0.00042767,120]
[399598168,1766526668928,-247.278707,0.00042767,120]
[399598169,1766526668940,-151.0,0.00042767,120]
[399598170,1766526668951,-1060.89397241,0.00042767,31]
[399598171,1766526668962,-185184.96193648,0.00042767,27]
[399598172,1766526668973,-158.48329942,0.00042767,30]
[399598173,1766526668985,-155.64705311,0.00042767,30]
[399598174,1766526669001,-160.33063992,0.00042767,30]
[399598175,1766526669012,-164.52110484,0.00042767,30]
[399598176,1766526669023,-156.76422926,0.00042767,30]
[399598177,1766526669036,-151.72084113,0.00042767,30]
[399598178,1766526669047,-152.11986511,0.00042767,30]
[399598179,1766526669058,-150.82546103,0.00042767,30]
[399598180,1766526669069,-157.7543509,0.00042767,30]
[399598181,1766526669081,-152.94375339,0.00042767,30]
[399598182,1766526669091,-162.0002847,0.00042767,30]
[399598183,1766526669103,-152.70737667,0.00042767,30]
[399598184,1766526669115,-12097.07068081,0.00042767,2]
[399598185,1766526669126,-9229.89153308,0.00042767,4]
[399598186,1766526669137,-380524.50774621,0.00042767,7]
[399598187,1766526669151,-666.106399,0.00042767,7]
[399598188,1766526669164,-3000.0,0.00042767,7]
[399598189,1766526669176,-475.776,0.00042767,7]
[399598190,1766526669188,-1656.40178596,0.00042767,7]
[399598191,1766526669215,-225.00052826,0.00042767,7]
[399598192,1766526669234,-247.278707,0.00042767,120]
[399598193,1766526669245,-124.00898094,0.00042767,7]
[399598194,1766526669497,-151.0,0.00042767,120]
[399598195,1766526669508,-151.0,0.00042767,120]
[399598196,1766526669519,-247.278707,0.00042767,120]
[399598197,1766526669531,-151.0,0.00042767,120]
[399598198,1766526669542,-247.278707,0.00042767,120]
[399598199,1766526669553,-151.0,0.00042767,120]
[399598200,1766526669564,-151.0,0.00042767,120]
[399598201,1766526669574,-247.278707,0.00042767,120]
[399598202,1766526669585,-151.0,0.00042767,120]
[399598203,1766526669596,-247.278707,0.00042767,120]
[399598204,1766526669607,-151.0,0.00042767,120]
[399598205,1766526669618,-247.278707,0.00042767,120]
[399598206,1766526669628,-151.0,0.00042767,120]
[399598207,1766526669639,-247.278707,0.00042767,120]
[399598208,1766526669650,-247.278707,0.00042767,120]
[399598209,1766526669661,-151.0,0.00042767,120]
[399598210,1766526669671,-247.278707,0.00042767,120]
[399598211,1766526669682,-151.0,0.00042767,120]
[399598212,1766526669693,-247.278707,0.00042767,120]
[399598213,1766526669703,-151.0,0.00042767,120]
[399598214,1766526669714,-5433.791464,0.00042767,7]
[399598215,1766526669731,-6279.87359996,0.00042767,7]
[399598216,1766526669744,-6420.70568648,0.00042767,7]
[399598217,1766526670006,-0.62137387,0.00042767,120]
[399598218,1766526670521,5648.38,0.0001477,2]
[399598219,1766526694108,81.89163104,0.00014031,2]
[399598220,1766526694136,84.76836896,0.00014031,2]
[399598221,1766526694303,166.66,0.00014327,2]
[399598222,1766526694532,166.66,0.00014622,2]
[399598223,1766526695149,166.66,0.00014918,2]
[399598224,1766526722263,500.0,0.00014924,2]
[399598225,1766526722310,347.28140093,0.00014924,2]
[399598228,1766526840799,3000.11,0.0001477,2]
[399598244,1766526996769,-166.66,0.00015213,2]
[399598245,1766527020177,500.0,0.00014924,2]
[399598246,1766527026729,-4000000.0,0.00042767,7]
[399598256,1766527089444,500.0,0.00015173,2]
[399598259,1766527106020,-9000000.0,0.00042767,7]
[399598261,1766527108907,500.0,7.385e-05,2]
[399598262,1766527108935,1163.08,7.385e-05,2]
[399598263,1766527109098,1663.08,7.774e-05,2]
[399598264,1766527109291,1663.08,8.162e-05,2]
[399598265,1766527109493,1663.08,8.551e-05,2]
[399598266,1766527109696,1663.08,8.94e-05,2]
[399598267,1766527109941,-9000000.0,0.00042767,7]
[399598268,1766527110094,1351.29,9.328e-05,2]
[399598269,1766527110122,311.79,9.328e-05,2]
[399598270,1766527110300,1663.08,9.717e-05,2]
[399598271,1766527110499,1663.08,0.00010106,2]
[399598272,1766527110701,1663.08,0.00010494,2]
[399598273,1766527110946,1663.08,0.00010883,2]
[399598274,1766527111146,1663.08,0.00011272,2]
[399598275,1766527111368,1372.82,0.00011661,2]
[399598276,1766527111399,290.26,0.00011661,2]
[399598277,1766527111580,1663.08,0.00012049,2]
[399598278,1766527111797,1663.08,0.00012438,2]
[399598279,1766527112010,1663.08,0.00012827,2]
[399598280,1766527112205,1663.08,0.00013215,2]
[399598281,1766527112407,1663.08,0.00013604,2]
[399598282,1766527112617,1394.35,0.00013993,2]
[399598283,1766527112646,268.73,0.00013993,2]
[399598284,1766527112827,1663.08,0.00014381,2]
[399598285,1766527113054,1663.08,0.0001477,2]
[399598351,1766527212953,500.0,0.00015173,2]
[399598354,1766527301028,-300.0,0.00015507,2]
[399598356,1766527321271,300.0,0.00015507,2]
[399598358,1766527381523,300.0,0.00015507,2]
[399598364,1766527441233,300.0,0.00015507,2]
[399598369,1766527501133,162.0,0.00015507,2]
[399598370,1766527501168,300.0,0.00015507,2]
[399598371,1766527501202,1200.0,0.00015507,2]
[399598372,1766527513963,500.0,0.00015173,2]
[399598375,1766527518486,500.0,0.00015173,2]
[399598383,1766527627962,500.0,0.00015173,2]
[399598386,1766527645777,500.0,0.00015173,2]
[399598397,1766527818540,500.0,0.00015173,2]
[399598400,1766527821963,500.0,0.00015173,2]
[399598403,1766527831606,-1200.0,0.00015507,2]
[399598404,1766527831616,-300.0,0.00015507,2]
[399598405,1766527831627,-300.0,0.00015507,2]
[399598406,1766527831637,-1200.0,0.00015507,2]
[399598407,1766527831647,-250.0,0.00015508,2]
[399598408,1766527831657,-166.66,0.00015508,2]
[399598409,1766527831667,-500.0,0.00015508,2]
[399598410,1766527831678,-500.0,0.00015508,2]
[399598411,1766527831688,-500.0,0.00015508,2]
[399598412,1766527831698,-271.14675912,0.00015508,2]
[399598413,1766527831711,-228.85324088,0.00015508,2]
[399598414,1766527831721,-257.14755911,0.00015508,2]
[399598415,1766527831734,-242.85244089,0.00015508,2]
[399598416,1766527831745,-1000.0,0.00015721,2]
[399598417,1766527831755,-342.8792536,0.00015721,2]
[399598418,1766527831766,-276.82,0.0001614,2]
[399598419,1766527831779,-150.0,0.0001623,2]
[399598420,1766527831790,-1500.0,0.00016268,2]
[399598421,1766527831800,-151.0,0.00016428,2]
[399598422,1766527831811,-151.0,0.00016428,2]
[399598423,1766527831821,-151.0,0.00016428,2]
[399598424,1766527831831,-187.52365268,0.00016428,2]
[399598425,1766527831842,-5880.51,0.00016438,2]
[399598452,1766527832218,-743.75963616,0.00016438,2]
[399598453,1766527832231,-56.80606681,0.00016438,2]
[399598454,1766527832241,-207.0,0.00016525,2]
[399598455,1766527832251,-207.0,0.00016535,2]
[399598456,1766527832261,-207.0,0.00016591,2]
[399598457,1766527832275,-207.0,0.00016622,2]
[399598458,1766527832285,-207.0,0.00016781,2]
[399598459,1766527832295,-1471.24302708,0.00016816,2]
[399598460,1766527832305,-207.0,0.0001682,2]
[399598461,1766527832315,-207.0,0.00016824,2]
[399598462,1766527832325,-207.0,0.00016825,2]
[399598463,1766527832335,-207.0,0.00016836,2]
[399598464,1766527832345,-558.0,0.00016863,2]
[399598465,1766527832356,-207.0,0.00016958,2]
[399598466,1766527832366,-420.0,0.00016963,2]
[399598467,1766527832376,-420.0,0.00016963,2]
[399598468,1766527832387,-500.0,0.00016998,2]
[399598469,1766527832397,-500.0,0.00016999,2]
[399598470,1766527832411,-207.0,0.00017015,2]
[399598471,1766527832422,-1680.0,0.00017049,2]
[399598472,1766527832433,-207.0,0.00017055,2]
[399598473,1766527832443,-207.0,0.00017056,2]
[399598474,1766527832453,-250.0,0.00017058,2]
[399598475,1766527832463,-250.0,0.00017058,2]
[399598476,1766527832474,-207.0,0.00017153,2]
[399598477,1766527832487,-207.0,0.00017239,2]
[399598478,1766527832496,-207.0,0.00017318,2]
[399598479,1766527832506,-207.0,0.00017364,2]
[399598480,1766527832516,-276.82,0.0001751,2]
[399598481,1766527832530,-207.0,0.0001753,2]
[399598482,1766527832540,-207.0,0.000176,2]
[399598483,1766527832550,-3229.51,0.00017638,2]
[399598484,1766527832560,-969.14,0.00017688,2]
[399598485,1766527832571,-207.0,0.00017689,2]
[399598486,1766527832580,-207.0,0.00017759,2]
[399598487,1766527832590,-207.0,0.00017861,2]
[399598488,1766527832600,-150.0,0.00017915,2]
[399598489,1766527832611,-207.0,0.00017915,2]
[399598490,1766527832621,-117908.26887815,0.00017955,2]
[399598491,1766527832638,-474.78399393,0.00017955,2]
[399598492,1766527832650,-4638.41282382,0.00017955,2]
[399598493,1766527832661,-13285.14,0.00017955,2]
[399598494,1766527832673,-4308.48920621,0.00017955,2]
[399598502,1766527838281,-5000.00603752,0.00017955,2]
[399598503,1766527838295,-7801.5279552,0.00017955,2]
[399598506,1766527839904,-5225.753394,0.00017955,2]
[399598507,1766527839994,-2968.1,0.00017955,2]
[399598508,1766527840051,-8938.86384136,0.00017955,2]
[399598521,1766527843005,-1426.9169098,0.00017955,2]
[399598522,1766527843017,-444.471027,0.00017955,2]
[399598523,1766527843029,-71415.33538319,0.00017955,2]
[399598524,1766527843041,-283.27,0.00017955,2]
[399598525,1766527843052,-2353.88008,0.00017955,2]
[399598526,1766527843064,-1000.0,0.00017955,2]
[399598527,1766527843075,-144398.44826404,0.00017955,2]
[399598528,1766527843228,-1632.89,0.00017955,2]
[399598529,1766527843244,-1765.99018171,0.00017955,2]
[399598531,1766527845729,-1105.61969898,0.00017955,2]
[399598532,1766527845742,-644.1737403,0.00017955,2]
[399598533,1766527845788,-4523.48153345,0.00017955,2]
[399598534,1766527845800,-453.32660024,0.00017955,2]
[399598535,1766527845904,-4791.0,0.00017955,2]
[399598536,1766527845916,-290.1,0.00017955,2]
[399598537,1766527845969,-663.7042298,0.00017955,2]
[399598538,1766527845981,-264.208,0.00017955,2]
[399598539,1766527846028,-346.739996,0.00017955,2]
[399598540,1766527846042,-522.52533801,0.00017955,2]
[399598585,1766527958617,999.0,0.0001477,3]
[399598592,1766528045760,694.58,0.00013699,2]
[399598651,1766528272373,150.0,0.000226,120]
[399598655,1766528316485,1500.0,0.0001477,2]
[399598675,1766528428000,500.0,0.0001477,2]
[399598701,1766528760985,10000.01,8e-05,2]
[399598702,1766528761011,326.9038679,8e-05,2]
[399598707,1766528815966,-285.0,0.00016126,2]
[399598708,1766528815992,-5000.00762744,0.000162,5]
[399598709,1766528816018,-151.0,0.00016215,2]
[399598710,1766528816044,-151.0,0.0001635,2]
[399598711,1766528816071,-250.0,0.00016371,2]
[399598712,1766528816096,-200.0,0.00016502,2]
[399598713,1766528816121,-190.84756848,0.00016502,2]
[399598714,1766528816145,-251.64087733,0.00016612,2]
[399598715,1766528816627,-353.0,0.00016697,2]
[399598716,1766528816654,-353.0,0.00016702,2]
[399598717,1766528816678,-165.5,0.00016712,2]
[399598718,1766528816707,-353.0,0.00016727,2]
[399598719,1766528816736,-353.0,0.00016771,2]
[399598720,1766528816762,-353.0,0.00016847,2]
[399598721,1766528816788,-1004.87064085,0.00016904,2]
[399598722,1766528816812,-300.0,0.00016904,2]
[399598723,1766528816837,-201.17741891,0.00016905,2]
[399598724,1766528816861,-184.99945595,0.00016905,2]
[399598725,1766528816884,-227.6806477,0.00016905,2]
[399598726,1766528816908,-418.56463736,0.00016905,2]
[399598727,1766528816932,-366.07323212,0.00016905,2]
[399598728,1766528816956,-56553.67821051,0.00016905,2]
[399598729,1766528816986,-1244.49611268,0.00016905,2]
[399598730,1766528817010,-452.3836507,0.00016905,2]
[399598731,1766528817036,-54020.05588624,0.00016905,2]
[399598732,1766528817060,-166.75347231,0.00016905,2]
[399598733,1766528817087,-353.0,0.00016927,2]
[399598734,1766528817112,-353.0,0.00016927,2]
[399598735,1766528817136,-208.48179988,0.00016999,2]
[399598736,1766528817163,-491.78810754,0.00016999,2]
[399598737,1766528817186,-343.55229028,0.00016999,2]
[399598738,1766528817211,-500.0,0.00016999,2]
[399598739,1766528817236,-587.94621572,0.00016999,2]
[399598740,1766528817262,-500.0,0.00016999,2]
[399598741,1766528817296,-739.42260955,0.00016999,2]
[399598742,1766528817321,-500.0,0.00016999,2]
[399598743,1766528817345,-500.0,0.00016999,2]
[399598744,1766528817371,-500.0,0.00016999,2]
[399598745,1766528817409,-739.42260955,0.00016999,2]
[399598746,1766528817438,-224.42455576,0.00016999,2]
[399598747,1766528817463,-354.83497091,0.00016999,2]
[399598748,1766528817489,-500.0,0.00016999,2]
[399598749,1766528817516,-500.0,0.00016999,2]
[399598750,1766528817548,-739.42260955,0.00016999,2]
[399598751,1766528817574,-500.0,0.00016999,2]
[399598752,1766528817605,-739.42260955,0.00016999,2]
[399598753,1766528817632,-620.0,0.00016999,2]
[399598754,1766528817665,-739.42260955,0.00016999,2]
[399598755,1766528817690,-500.0,0.00016999,2]
[399598756,1766528817726,-739.42260955,0.00016999,2]
[399598757,1766528817751,-500.0,0.00016999,2]
[399598758,1766528817785,-739.42260955,0.00016999,2]
[399598759,1766528817818,-739.42260955,0.00016999,2]
[399598760,1766528817850,-739.42260955,0.00016999,2]
[399598761,1766528817882,-739.42260955,0.00016999,2]
[399598762,1766528817919,-739.42260955,0.00016999,2]
[399598763,1766528817953,-739.42260955,0.00016999,2]
[399598764,1766528817986,-739.42260955,0.00016999,2]
[399598765,1766528818018,-739.42260955,0.00016999,2]
[399598766,1766528818050,-739.42260955,0.00016999,2]
[399598767,1766528818082,-739.42260955,0.00016999,2]
[399598768,1766528818117,-739.42260955,0.00016999,2]
[399598769,1766528818150,-739.42260955,0.00016999,2]
[399598770,1766528818184,-739.42260955,0.00016999,2]
[399598771,1766528818220,-739.42260955,0.00016999,2]
[399598772,1766528818254,-739.42260955,0.00016999,2]
[399598773,1766528818288,-739.42260955,0.00016999,2]
[399598774,1766528818321,-739.42260955,0.00016999,2]
[399598775,1766528818353,-739.42260955,0.00016999,2]
[399598776,1766528818385,-739.42260955,0.00016999,2]
[399598777,1766528818420,-739.42260955,0.00016999,2]
[399598778,1766528818453,-739.42260955,0.00016999,2]
[399598779,1766528818485,-739.42260955,0.00016999,2]
[399598780,1766528818518,-739.42260955,0.00016999,2]
[399598781,1766528818549,-739.42260955,0.00016999,2]
[399598782,1766528818581,-739.42260955,0.00016999,2]
[399598783,1766528818613,-739.42260955,0.00016999,2]
[399598784,1766528818645,-739.42260955,0.00016999,2]
[399598785,1766528818677,-739.42260955,0.00016999,2]
[399598786,1766528818714,-739.42260955,0.00016999,2]
[399598787,1766528818746,-739.42260955,0.00016999,2]
[399598788,1766528818779,-739.42260955,0.00016999,2]
[399598789,1766528818809,-739.42260955,0.00016999,2]
[399598790,1766528818839,-739.42260955,0.00016999,2]
[399598791,1766528818871,-739.42260955,0.00016999,2]
[399598792,1766528818902,-739.42260955,0.00016999,2]
[399598793,1766528818932,-739.42260955,0.00016999,2]
[399598794,1766528818963,-739.42260955,0.00016999,2]
[399598795,1766528818995,-739.42260955,0.00016999,2]
[399598796,1766528819020,-204.9198829,0.00016999,2]
[399598797,1766528819045,-438.90736571,0.00016999,2]
[399598798,1766528819071,-500.0,0.00016999,2]
[399598799,1766528819103,-727.38549731,0.00016999,2]
[399598800,1766528819135,-727.38549731,0.00016999,2]
[399598801,1766528819167,-727.38549731,0.00016999,2]
[399598802,1766528819200,-727.38549731,0.00016999,2]
[399598803,1766528819244,-727.38549731,0.00016999,2]
[399598804,1766528819284,-727.38549731,0.00016999,2]
[399598805,1766528819319,-727.38549731,0.00016999,2]
[399598806,1766528819352,-727.38549731,0.00016999,2]
[399598807,1766528819384,-727.38549731,0.00016999,2]
[399598808,1766528819415,-727.38549731,0.00016999,2]
[399598809,1766528819446,-727.38549731,0.00016999,2]
[399598810,1766528819478,-727.38549731,0.00016999,2]
[399598811,1766528819511,-727.38549731,0.00016999,2]
[399598812,1766528819544,-727.38549731,0.00016999,2]
[399598813,1766528819577,-727.38549731,0.00016999,2]
[399598814,1766528819610,-727.38549731,0.00016999,2]
[399598815,1766528819642,-727.38549731,0.00016999,2]
[399598816,1766528819674,-727.38549731,0.00016999,2]
[399598817,1766528819709,-727.38549731,0.00016999,2]
[399598818,1766528819743,-727.38549731,0.00016999,2]
[399598819,1766528819775,-727.38549731,0.00016999,2]
[399598820,1766528819808,-727.38549731,0.00016999,2]
[399598821,1766528819841,-727.38549731,0.00016999,2]
[399598822,1766528819875,-727.38549731,0.00016999,2]
[399598823,1766528819908,-727.38549731,0.00016999,2]
[399598824,1766528819941,-727.38549731,0.00016999,2]
[399598825,1766528819974,-727.38549731,0.00016999,2]
[399598826,1766528820000,-250.0,0.00017,2]
[399598827,1766528820030,-339344.41212515,0.00017,2]
[399598832,1766528899184,390.34503828,7.888e-05,2]
[399598859,1766529031789,-368.0,0.00016829,2]
[399598860,1766529031799,-292.0,0.00016829,2]
[399598861,1766529031811,-369.8004679,0.000169,2]
[399598862,1766529031821,-151.78709848,0.000169,2]
[399598863,1766529031831,-376.98637555,0.000169,2]
[399598864,1766529031841,-279.04309158,0.000169,2]
[399598865,1766529031853,-244.04882142,0.000169,2]
[399598866,1766529031863,-300.0,0.00016989,2]
[399598867,1766529031872,-971.97779524,0.00016989,2]
[399598868,1766529031885,-228.02220476,0.00016989,2]
[399598869,1766529031895,-271.97779524,0.00016989,2]
[399598870,1766529031913,-28.02220476,0.00016989,2]
[399598871,1766529031923,-300.0,0.00016989,2]
[399598872,1766529031933,-151.0,0.0001699,2]
[399598873,1766529031944,-73.4061203,0.0001699,2]
[399598874,1766529031956,-77.5938797,0.0001699,2]
[399598875,1766529031966,-151.0,0.0001699,2]
[399598876,1766529031976,-41.25479728,0.0001699,2]
[399598877,1766529031988,-109.74520272,0.0001699,2]
[399598878,1766529031998,-151.0,0.0001699,2]
[399598879,1766529032008,-13.09910264,0.0001699,2]
[399598880,1766529032020,-137.90089736,0.0001699,2]
[399598881,1766529032030,-151.0,0.0001699,2]
[399598882,1766529032041,-151.0,0.0001699,2]
[399598883,1766529032051,-151.0,0.0001699,2]
[399598884,1766529032061,-151.0,0.0001699,2]
[399598886,1766529032071,-269.21010669,0.0001699,2]
[399598888,1766529032080,-269.21010669,0.0001699,2]
[399598890,1766529032091,-269.21010669,0.0001699,2]
[399598892,1766529032101,-345.0,0.00016998,2]
[399598894,1766529032110,-500.0,0.00016999,2]
[399598896,1766529032120,-500.0,0.00016999,2]
[399598899,1766529032130,-500.0,0.00016999,2]
[399598902,1766529032139,-500.0,0.00016999,2]
[399598905,1766529032149,-703.51816067,0.00016999,2]
[399598908,1766529032158,-703.51816067,0.00016999,2]
[399598911,1766529032168,-703.51816067,0.00016999,2]
[399598914,1766529032177,-483.41987985,0.00016999,2]
[399598916,1766529032190,-220.09828082,0.00016999,2]
[399598918,1766529032199,-264.01449418,0.00016999,2]
[399598921,1766529032218,-439.50366649,0.00016999,2]
[399598923,1766529032228,-703.51816067,0.00016999,2]
[399598925,1766529032238,-703.51816067,0.00016999,2]
[399598927,1766529032248,-390.53353854,0.00016999,2]
[399598929,1766529032259,-312.98462213,0.00016999,2]
[399598931,1766529032269,-703.51816067,0.00016999,2]
[399598933,1766529032279,-396.75193347,0.00016999,2]
[399598936,1766529032292,-306.7662272,0.00016999,2]
[399598937,1766529032302,-222.59860853,0.00016999,2]
[399598938,1766529032314,-480.91955214,0.00016999,2]
[399598939,1766529032324,-703.51816067,0.00016999,2]
[399598940,1766529032333,-703.51816067,0.00016999,2]
[399598941,1766529032343,-703.51816067,0.00016999,2]
[399598942,1766529032353,-703.51816067,0.00016999,2]
[399598943,1766529032363,-500.0,0.00016999,2]
[399598944,1766529032373,-203.51816062,0.00016999,2]
[399598945,1766529032383,-249.98265423,0.00016999,2]
[399598946,1766529032392,-2940.82899683,0.00017,2]
[399598947,1766529032404,-372.51000098,0.00017,2]
[399598948,1766529032415,-474.202935,0.00017,2]
[399598949,1766529032431,-375.12799992,0.00017,2]
[399598954,1766529037916,-151.0,0.00016294,2]
[399598955,1766529037927,-342.17330366,0.00016999,2]
[399598956,1766529037939,-157.82669634,0.00016999,2]
[399598957,1766529037949,-203.83318504,0.00016999,2]
[399598958,1766529037959,-500.0,0.00016999,2]
[399598959,1766529037970,-33453.34012112,0.00017,2]
[399598960,1766529037983,-1801289.07300275,0.00017,2]
[399598961,1766529037995,-583.72879,0.00017,2]
[399598962,1766529038013,-580.92506633,0.00017,2]
[399598963,1766529038043,-337.11333192,0.00017,2]
[399598964,1766529038056,-1998.71946029,0.00017,2]
[399598974,1766529039921,-277378.42633382,0.00017,2]
[399598975,1766529039934,-3695.32561556,0.00017,2]
[399598976,1766529039950,-776.90309751,0.00017,2]
[399598977,1766529039999,-92482.3384225,0.00017,2]
[399598978,1766529040012,-50644.77740974,0.00017,2]
[399598979,1766529040024,-765.44534152,0.00017,2]
[399598980,1766529040037,-2333.0,0.00017,2]
[399598981,1766529040055,-886.25499778,0.00017,2]
[399598982,1766529040520,-2093.22915044,0.00017,2]
[399598983,1766529040534,-1726.20261433,0.00017,2]
[399598984,1766529040546,-934.16,0.00017,2]
[399598985,1766529040558,-1985.97220089,0.00017,2]
[399598986,1766529040581,-34021.95570156,0.00017,2]
[399598987,1766529040595,-999.0,0.00017,2]
[399598988,1766529040607,-600.719909,0.00017,2]
[399598989,1766529040622,-632.12874861,0.00017,2]
[399598990,1766529040634,-1330.08239876,0.00017,2]
[399598991,1766529040646,-4669.82032168,0.00017,2]
[399598992,1766529040657,-3307.21390257,0.00017,2]
[399598993,1766529040673,-292.0,0.00017,2]
[399598994,1766529040685,-1604.53112907,0.00017,2]
[399598995,1766529040707,-252.636388,0.00017,2]
[399598996,1766529040718,-4243071.09617681,0.00017,2]
[399598997,1766529040728,-778.34455082,0.00017,2]
[399598998,1766529040738,-287.32748031,0.00017,2]
[399598999,1766529040748,-151.0,0.00017,2]
[399599000,1766529040758,-290573.3000047,0.00017,2]
[399599001,1766529040783,-117387.84140331,0.00017,2]
[399599008,1766529044192,-42422.31143623,0.00017,2]
[399599009,1766529044204,-327413.98130596,0.00017,2]
[399599010,1766529044216,-968.65292951,0.00017,2]
[399599011,1766529044233,-4048.39259263,0.00017,2]
[399599012,1766529044245,-233366.06928286,0.00017,2]
[399599018,1766529045887,-233.43980089,0.00016999,2]
[399599019,1766529045897,-1222.2898137,0.00017,2]
[399599020,1766529045908,-341.00597425,0.00017,2]
[399599021,1766529045948,-43630.52155166,0.00017,2]
[399599022,1766529045960,-706.41106177,0.00017,2]
[399599023,1766529045972,-1094.0603888,0.00017,2]
[399599024,1766529045984,-652.03613473,0.00017,2]
[399599025,1766529046126,-1100.0,0.00017,2]
[399599026,1766529046188,-1746.80500616,0.00017,2]
[399599027,1766529046200,-18790.14322855,0.00017,2]
[399599028,1766529046212,-872.21,0.00017,2]
[399599083,1766529726231,166.66,0.00015142,2]
[399599104,1766529912174,152.55260265,0.00015288,2]
[399599105,1766529912216,150.0,0.00015288,2]
[399599106,1766529912850,150.0,0.00015288,2]
[399599107,1766529914647,150.0,0.00015288,2]
[399599108,1766529922975,150.0,0.00015288,2]
[399599109,1766529932347,150.0,0.00015288,2]
[399599110,1766529932458,150.0,0.00015288,2]
[399599111,1766529933935,1000.0,0.0001492,2]
[399599112,1766529934883,150.0,0.00015288,2]
[399599113,1766529938106,150.0,0.00015288,2]
[399599114,1766529946324,151.68546766,0.00015288,2]
[399599115,1766529946427,150.0,0.00015288,2]
[399599116,1766529947013,150.0,0.00015288,2]
[399599131,1766530172167,-150.0,0.00015323,2]
[399599132,1766530172190,-99.44449974,0.00015327,2]
[399599147,1766530231963,-150.55550026,0.00015327,2]
[399599148,1766530231974,-150.0,0.00015331,2]
[399599149,1766530231984,-150.0,0.00015348,2]
[399599150,1766530231995,-150.0,0.00015358,2]
[399599151,1766530232006,-150.0,0.00015358,2]
[399599152,1766530232016,-150.0,0.00015362,2]
[399599153,1766530232027,-150.0,0.00015375,2]
[399599154,1766530232037,-150.0,0.00015394,2]
[399599155,1766530232048,-150.0,0.00015409,2]
[399599156,1766530232058,-150.0,0.00015418,2]
[399599157,1766530232068,-150.0,0.00015429,2]
[399599158,1766530232079,-150.0,0.00015429,2]
[399599159,1766530232091,-150.0,0.00015435,2]
[399599160,1766530232102,-150.0,0.00015457,2]
[399599161,1766530232112,-166.66,0.0001546,2]
[399599162,1766530232123,-150.0,0.00015462,2]
[399599163,1766530232133,-150.0,0.00015465,2]
[399599164,1766530232143,-150.0,0.0001547,2]
[399599165,1766530232154,-150.0,0.000155,2]
[399599166,1766530232163,-150.0,0.000155,2]
[399599168,1766530232174,-150.0,0.000155,2]
[399599170,1766530232183,-136.94599491,0.000155,2]
[399599171,1766530232222,-13.05400509,0.000155,2]
[399599173,1766530232232,-150.0,0.00015505,2]
[399599175,1766530232242,-150.0,0.00015509,2]
[399599177,1766530232252,-286.0,0.00015521,2]
[399599179,1766530232263,-160.0,0.00015521,2]
[399599180,1766530232273,-529.06851491,0.00015526,2]
[399599183,1766530232284,-12.93148509,0.00015526,2]
[399599185,1766530232294,-150.0,0.0001553,2]
[399599187,1766530232304,-150.0,0.0001553,2]
[399599189,1766530232314,-31.24022944,0.00015534,2]
[399599191,1766530232326,-464.3744897,0.00015534,2]
[399599193,1766530232338,-556.64674786,0.00015534,2]
[399599195,1766530232349,-147.738533,0.00015534,2]
[399599197,1766530232359,-150.0,0.00015535,2]
[399599199,1766530232369,-150.0,0.00015549,2]
[399599205,1766530232712,-150.0,0.00015571,2]
[399599206,1766530232724,-150.0,0.00015571,2]
[399599207,1766530232735,-300.0,0.00015582,2]
[399599208,1766530232744,-191.19431446,0.00015582,2]
[399599209,1766530232757,-108.80568554,0.00015582,2]
[399599210,1766530232767,-150.0,0.00015583,2]